[Event "Konyaalti Open-B 2019"]
[Site "Konyaalti"]
[Date "2019.11.22"]
[Round "7.12"]
[White "Egeli, Sercan Veli"]
[Black "Ceylan, Arda"]
[Result "1-0"]
[ECO "C06"]
[WhiteElo "1478"]
[BlackElo "1751"]
[Annotator "NA"]
[PlyCount "65"]
[EventDate "2019.11.20"]
[EventType "swiss"]
[EventCountry "TUR"]
[SourceTitle "playchess.com"]
[Source "ChessBase"]
[SourceQuality "1"]
[TimeControl "5400+30"]

1. e4 {[%emt 0:00:30]} e6 {[%emt 0:00:30]} 2. d4 {[%emt 0:00:30]} d5 {[%emt 0:00:30]} 3. Nd2 {[%emt 0:00:30]} Be7 {[%emt 0:00:30]} 4. c3 {[%emt 0:00:30]} Nf6 {[%emt 0:00:30]} 5. e5 {[%emt 0:00:30]} Nfd7 {[%emt 0:00:30]} 6. Bd3 {[%emt 0:00:30]} c5 {[%emt 0:00:30]} 7. Ne2 {[%emt 0:00:30]} Nc6 {[%emt 0:00:30]} 8. O-O {[%emt 0:00:00]} f6 {[%emt 0:10:30]} 9. Nf4 {[%emt 0:03:00]} Nf8 {[%emt 0:05:30]} 10. Nf3 {[%emt 0:35:30]} fxe5 {[%emt 0:09:30]} 11. Nxe5 {[%emt 0:00:30]} Nxe5 {[%emt 0:00:30]} 12. dxe5 {[%emt 0:00:00]} g6 {[%emt 0:09:30]} 13. Qf3 {[%emt 0:05:00]} Qc7 {[%emt 0:04:30]} 14. Re1 {[%emt 0:02:30]} Bd7 {[%emt 0:04:30]} 15. Bd2 {[%emt 0:05:30]} O-O-O {[%emt 0:04:30]} 16. Qe2 {[%emt 0:06:30]} g5 {[%emt 0:14:30]} 17. Nh3 {[%emt 0:01:30]} h6 {[%emt 0:04:30]} 18. a4 {[%emt 0:17:45]} Be8 {[%emt 0:04:30]} 19. f4 {[%emt 0:01:45]} gxf4 {[%emt 0:06:28]} 20. Nxf4 {[%emt 0:00:19]} Bg5 {[%emt 0:00:24]} 21. Nh3 {[%emt 0:08:15]} Qe7 {[%emt 0:07:13]} 22. Rf1 {[%emt 0:01:46]} Bg6 {[%emt 0:02:18]} 23. Bxg5 {[%emt 0:01:31]} hxg5 {[%emt 0:02:09]} 24. Bxg6 {[%emt 0:00:18]} Nxg6 {[%emt 0:00:31]} 25. Rf6 {[%emt 0:00:04]} Rxh3 {[%emt 0:03:52]} 26. gxh3 {[%emt 0:02:09]} Nf4 {[%emt 0:00:13]} 27. Qg4 {[%emt 0:00:27]} d4 {[%emt 0:01:52]} 28. h4 {[%emt 0:02:11]} dxc3 {[%emt 0:01:35]} 29. bxc3 {[%emt 0:00:33]} Rd3 {[%emt 0:00:30]} 30. hxg5 {[%emt 0:00:53]} Nh3+ {[%emt 0:00:54]} 31. Kf1 {[%emt 0:00:45]} Qh7 {[%emt 0:00:59]} 32. Qxe6+ {[%emt 0:00:21]} Rd7 {[%emt 0:00:15]} 33. Rd1 {[%emt 0:00:15]} 1-0

[Event "Konyaalti Open-B 2019"]
[Site "Konyaalti"]
[Date "2019.11.22"]
[Round "7.13"]
[White "Atik, Muhammed Ihsan"]
[Black "Ozen, Metehan"]
[Result "1/2-1/2"]
[ECO "A45"]
[WhiteElo "1533"]
[BlackElo "1779"]
[Annotator "NA"]
[PlyCount "88"]
[EventDate "2019.11.20"]
[EventType "swiss"]
[EventCountry "TUR"]
[SourceTitle "playchess.com"]
[Source "ChessBase"]
[SourceQuality "1"]
[TimeControl "5400+30"]

1. d4 {[%emt 0:00:30]} Nf6 {[%emt 0:00:30]} 2. Bg5 {[%emt 0:00:30]} c5 {[%emt 0:00:30]} 3. d5 {[%emt 0:00:30]} Qb6 {[%emt 0:00:30]} 4. Nc3 {[%emt 0:01:30]} Qxb2 {[%emt 0:12:30]} 5. Bd2 {[%emt 0:00:30]} Qb6 {[%emt 0:00:30]} 6. Rb1 {[%emt 0:03:30]} Qd8 {[%emt 0:00:30]} 7. e4 {[%emt 0:01:30]} d6 {[%emt 0:00:30]} 8. f4 {[%emt 0:03:30]} a6 {[%emt 0:04:30]} 9. a4 {[%emt 0:04:30]} g6 {[%emt 0:00:00]} 10. Bc4 {[%emt 0:01:30]} Nbd7 {[%emt 0:04:00]} 11. Nf3 {[%emt 0:01:30]} Bg7 {[%emt 0:01:30]} 12. h3 {[%emt 0:10:30]} O-O {[%emt 0:08:30]} 13. O-O {[%emt 0:03:30]} Qc7 {[%emt 0:07:30]} 14. Re1 {[%emt 0:05:30]} Ne8 {[%emt 0:04:30]} 15. Qe2 {[%emt 0:05:30]} Nb6 {[%emt 0:14:30]} 16. e5 {[%emt 0:06:30]} Nxc4 {[%emt 0:03:30]} 17. Qxc4 {[%emt 0:00:30]} e6 {[%emt 0:03:30]} 18. Be3 {[%emt 0:02:30]} b6 {[%emt 0:00:30]} 19. Bf2 {[%emt 0:14:30]} Qb7 {[%emt 0:05:30]} 20. Qe4 {[%emt 0:05:30]} Rb8 {[%emt 0:09:41]} 21. Bh4 {[%emt 0:06:30]} Kh8 {[%emt 0:04:21]} 22. g4 {[%emt 0:03:03]} f5 {[%emt 0:04:04]} 23. gxf5 {[%emt 0:02:41]} exd5 {[%emt 0:00:36]} 24. Qxd5 {[%emt 0:00:46]} Rxf5 {[%emt 0:00:46]} 25. Bg3 {[%emt 0:12:14]} Qd7 {[%emt 0:08:12]} 26. Nh4 {[%emt 0:01:51]} Rh5 {[%emt 0:00:52]} 27. e6 {[%emt 0:00:55]} Qe7 {[%emt 0:00:28]} 28. Qf3 {[%emt 0:00:12]} Bb7 {[%emt 0:00:32]} 29. Qd3 {[%emt 0:01:02]} Rxh4 {[%emt 0:00:28]} 30. Bxh4 {[%emt 0:00:45]} Qxh4 {[%emt 0:00:07]} 31. Ne2 {[%emt 0:00:20]} Nc7 {[%emt 0:01:02]} 32. Qg3 {[%emt 0:00:50]} Qh5 {[%emt 0:00:38]} 33. Rxb6 {[%emt 0:00:17]} Qd5 {[%emt 0:00:25]} 34. e7 {[%emt 0:00:36]} Ne6 {[%emt 0:00:23]} 35. c4 {[%emt 0:00:20]} Qxc4 {[%emt 0:00:54]} 36. Rxb7 {[%emt 0:00:09]} Re8 {[%emt 0:00:17]} 37. Qg4 {[%emt 0:00:46]} Nd4 {[%emt 0:00:20]} 38. Rd7 {[%emt 0:00:50]} Bf6 {[%emt 0:00:41]} 39. Rd8 {[%emt 0:00:29]} Rxd8 {[%emt 0:00:12]} 40. exd8=Q+ {[%emt 0:00:24]} Bxd8 {[%emt 0:00:00]} 41. Qc8 {[%emt 0:00:22]} Nxe2+ {[%emt 0:00:00]} 42. Kf2 {[%emt 0:00:39]} Qxf4+ {[%emt 0:00:00]} 43. Kxe2 {[%emt 0:00:02]} Qe4+ {[%emt 0:00:00]} 44. Kd2 {[%emt 0:00:33]} Qd4+ {[%emt 0:00:00]} 1/2-1/2

[Event "Konyaalti Open-B 2019"]
[Site "Konyaalti"]
[Date "2019.11.22"]
[Round "7.14"]
[White "Demir, Zeki"]
[Black "Var, Sefa"]
[Result "0-1"]
[ECO "D43"]
[WhiteElo "1685"]
[BlackElo "1745"]
[Annotator "NA"]
[PlyCount "104"]
[EventDate "2019.11.20"]
[EventType "swiss"]
[EventCountry "TUR"]
[SourceTitle "playchess.com"]
[Source "ChessBase"]
[SourceQuality "1"]
[TimeControl "5400+30"]

1. d4 {[%emt 0:00:30]} d5 {[%emt 0:00:30]} 2. c4 {[%emt 0:00:30]} c6 {[%emt 0:00:30]} 3. Nf3 {[%emt 0:00:30]} Nf6 {[%emt 0:00:30]} 4. Nc3 {[%emt 0:00:30]} e6 {[%emt 0:00:30]} 5. Bg5 {[%emt 0:00:30]} h6 {[%emt 0:00:30]} 6. Bh4 {[%emt 0:00:30]} dxc4 {[%emt 0:00:30]} 7. e4 {[%emt 0:00:30]} g5 {[%emt 0:00:30]} 8. Bg3 {[%emt 0:00:30]} b5 {[%emt 0:00:30]} 9. h4 {[%emt 0:03:30]} g4 {[%emt 0:00:00]} 10. Ne5 {[%emt 0:03:30]} h5 {[%emt 0:00:00]} 11. Be2 {[%emt 0:02:30]} Bb7 {[%emt 0:16:30]} 12. O-O {[%emt 0:02:30]} Nbd7 {[%emt 0:03:30]} 13. Nxd7 {[%emt 0:01:30]} Qxd7 {[%emt 0:02:30]} 14. e5 {[%emt 0:01:30]} Nd5 {[%emt 0:00:30]} 15. Ne4 {[%emt 0:00:00]} Be7 {[%emt 0:02:30]} 16. Qd2 {[%emt 0:05:00]} f5 {[%emt 0:07:30]} 17. exf6 {[%emt 0:01:30]} Nxf6 {[%emt 0:00:00]} 18. Ng5 {[%emt 0:00:30]} c5 {[%emt 0:06:00]} 19. Be5 {[%emt 0:01:30]} cxd4 {[%emt 0:06:30]} 20. Qxd4 {[%emt 0:03:30]} Qc6 {[%emt 0:03:30]} 21. Nf3 {[%emt 0:01:30]} Rg8 {[%emt 0:09:30]} 22. Ne1 {[%emt 0:06:30]} Ne4 {[%emt 0:00:30]} 23. Qe3 {[%emt 0:05:30]} O-O-O {[%emt 0:12:30]} 24. a4 {[%emt 0:03:30]} Bc5 {[%emt 0:02:30]} 25. axb5 {[%emt 0:01:30]} Qd5 {[%emt 0:00:30]} 26. Qf4 {[%emt 0:06:30]} Rgf8 {[%emt 0:09:18]} 27. Bxc4 {[%emt 0:02:30]} Qxc4 {[%emt 0:01:32]} 28. Qc1 {[%emt 0:05:30]} Qxc1 {[%emt 0:04:33]} 29. Rxc1 {[%emt 0:00:00]} Rd5 {[%emt 0:00:52]} 30. b4 {[%emt 0:07:00]} Rxe5 {[%emt 0:00:03]} 31. Nd3 {[%emt 0:00:30]} Ref5 {[%emt 0:02:09]} 32. bxc5 {[%emt 0:01:30]} Bd5 {[%emt 0:00:54]} 33. b6 {[%emt 0:04:30]} axb6 {[%emt 0:01:33]} 34. cxb6+ {[%emt 0:00:00]} Kb7 {[%emt 0:01:04]} 35. Rc7+ {[%emt 0:00:00]} Kxb6 {[%emt 0:00:15]} 36. Rc2 {[%emt 0:00:30]} Nd6 {[%emt 0:02:18]} 37. Nc5 {[%emt 0:03:30]} R8f7 {[%emt 0:01:09]} 38. Rb1+ {[%emt 0:02:30]} Nb5 {[%emt 0:00:41]} 39. Ra1 {[%emt 0:01:30]} Ra7 {[%emt 0:00:49]} 40. Na4+ {[%emt 0:00:30]} Rxa4 {[%emt 0:00:18]} 41. Rxa4 {[%emt 0:00:30]} Bb3 {[%emt 0:00:01]} 42. Raa2 {[%emt 0:00:30]} Bxa2 {[%emt 0:00:14]} 43. Rxa2 {[%emt 0:00:30]} Kc5 {[%emt 0:00:15]} 44. Kh2 {[%emt 0:00:30]} Nd6 {[%emt 0:01:15]} 45. Ra5+ {[%emt 0:02:30]} Kd4 {[%emt 0:00:12]} 46. Ra4+ {[%emt 0:01:30]} Ke5 {[%emt 0:00:01]} 47. Kg1 {[%emt 0:01:37]} Kf6 {[%emt 0:00:55]} 48. Ra2 {[%emt 0:01:15]} Ne4 {[%emt 0:00:09]} 49. Re2 {[%emt 0:00:36]} Ke5 {[%emt 0:00:39]} 50. Ra2 {[%emt 0:01:11]} Rxf2 {[%emt 0:00:26]} 51. Ra5+ {[%emt 0:00:16]} Kf4 {[%emt 0:00:18]} 52. Rxh5 {[%emt 0:00:55]} Rf1+ {[%emt 0:00:09]} 0-1

[Event "Konyaalti Open-B 2019"]
[Site "Konyaalti"]
[Date "2019.11.22"]
[Round "7.15"]
[White "Demir, Hilmi Mustafa"]
[Black "Gulceken, Sumeyye"]
[Result "1-0"]
[ECO "B19"]
[WhiteElo "1818"]
[BlackElo "1537"]
[Annotator "NA"]
[PlyCount "63"]
[EventDate "2019.11.20"]
[EventType "swiss"]
[EventCountry "TUR"]
[SourceTitle "playchess.com"]
[Source "ChessBase"]
[SourceQuality "1"]
[TimeControl "5400+30"]

1. e4 {[%emt 0:00:30]} c6 {[%emt 0:00:30]} 2. d4 {[%emt 0:00:30]} d5 {[%emt 0:00:30]} 3. Nc3 {[%emt 0:00:30]} dxe4 {[%emt 0:00:30]} 4. Nxe4 {[%emt 0:00:30]} Bf5 {[%emt 0:00:30]} 5. Ng3 {[%emt 0:00:30]} Bg6 {[%emt 0:00:30]} 6. h4 {[%emt 0:00:30]} h6 {[%emt 0:00:30]} 7. Nf3 {[%emt 0:00:30]} Nd7 {[%emt 0:00:30]} 8. h5 {[%emt 0:00:30]} Bh7 {[%emt 0:00:30]} 9. Bd3 {[%emt 0:00:30]} Bxd3 {[%emt 0:00:30]} 10. Qxd3 {[%emt 0:00:30]} e6 {[%emt 0:00:30]} 11. Bd2 {[%emt 0:00:30]} Ngf6 {[%emt 0:00:30]} 12. O-O-O {[%emt 0:00:30]} Qc7 {[%emt 0:00:30]} 13. Ne4 {[%emt 0:00:30]} O-O-O {[%emt 0:00:30]} 14. g3 {[%emt 0:00:30]} Nxe4 {[%emt 0:00:30]} 15. Qxe4 {[%emt 0:00:30]} Nf6 {[%emt 0:00:30]} 16. Qe2 {[%emt 0:00:00]} Bd6 {[%emt 0:00:00]} 17. c4 {[%emt 0:00:00]} c5 $11 {[%emt 0:02:00]} 18. Bc3 {[%emt 0:05:30]} cxd4 {[%emt 0:01:30]} 19. Nxd4 {[%emt 0:00:30]} a6 {[%emt 0:00:30]} 20. Kb1 {[%emt 0:05:30]} Kb8 {[%emt 0:04:30]} 21. Rc1 {[%emt 0:02:30]} Ka8 {[%emt 0:05:30]} 22. Nb3 {[%emt 0:04:30]} Rc8 {[%emt 0:12:30]} 23. c5 {[%emt 0:22:30]} Be7 {[%emt 0:04:30]} 24. c6 {[%emt 0:01:30]} bxc6 {[%emt 0:02:30]} 25. Bxf6 {[%emt 0:02:30]} gxf6 {[%emt 0:03:30]} 26. Qxa6+ {[%emt 0:00:30]} Kb8 {[%emt 0:01:30]} 27. Na5 {[%emt 0:06:30]} c5 {[%emt 0:03:30]} 28. Rc3 {[%emt 0:04:30]} c4 {[%emt 0:05:30]} 29. Rxc4 {[%emt 0:06:30]} Qd7 {[%emt 0:06:30]} 30. Nc6+ {[%emt 0:01:30]} Rxc6 {[%emt 0:00:30]} 31. Rxc6 {[%emt 0:00:30]} Bd8 {[%emt 0:00:30]} 32. Rhc1 {[%emt 0:00:30]} 1-0

[Event "Konyaalti Open-B 2019"]
[Site "Konyaalti"]
[Date "2019.11.21"]
[Round "8.11"]
[White "Kazik, Oguz Kagan"]
[Black "Guler, Muhammed Talha"]
[Result "1/2-1/2"]
[ECO "E16"]
[WhiteElo "1638"]
[BlackElo "1646"]
[Annotator "NA"]
[PlyCount "109"]
[EventDate "2019.11.20"]
[EventType "swiss"]
[EventCountry "TUR"]
[SourceTitle "playchess.com"]
[Source "ChessBase"]
[SourceQuality "1"]
[TimeControl "5400+30"]

1. d4 {[%emt 0:00:30]} Nf6 {[%emt 0:00:30]} 2. Nf3 {[%emt 0:01:30]} b6 {[%emt 0:04:30]} 3. g3 {[%emt 0:00:30]} Bb7 {[%emt 0:00:30]} 4. Bg2 {[%emt 0:00:30]} e6 {[%emt 0:01:30]} 5. c4 {[%emt 0:00:00]} Bb4+ {[%emt 0:00:30]} 6. Bd2 {[%emt 0:01:00]} a5 {[%emt 0:02:30]} 7. O-O {[%emt 0:01:30]} O-O {[%emt 0:01:30]} 8. a3 {[%emt 0:16:30]} Bxd2 {[%emt 0:00:30]} 9. Nbxd2 {[%emt 0:00:30]} d6 {[%emt 0:06:30]} 10. Qc2 {[%emt 0:03:30]} Nbd7 {[%emt 0:04:30]} 11. e4 {[%emt 0:02:30]} e5 {[%emt 0:10:30]} 12. d5 {[%emt 0:02:30]} a4 {[%emt 0:02:30]} 13. Nh4 {[%emt 0:06:30]} Nc5 {[%emt 0:06:30]} 14. Nf5 {[%emt 0:02:30]} Bc8 {[%emt 0:05:30]} 15. Ne3 {[%emt 0:02:30]} Ng4 {[%emt 0:04:30]} 16. Nxg4 {[%emt 0:07:30]} Bxg4 {[%emt 0:00:30]} 17. Rae1 {[%emt 0:00:30]} Bd7 {[%emt 0:00:30]} 18. f4 {[%emt 0:00:30]} f6 {[%emt 0:03:30]} 19. Rf2 {[%emt 0:15:30]} Qb8 {[%emt 0:04:30]} 20. Bf1 {[%emt 0:01:30]} b5 {[%emt 0:02:30]} 21. Re3 {[%emt 0:08:30]} Qb6 {[%emt 0:02:30]} 22. Rc3 {[%emt 0:01:30]} b4 {[%emt 0:07:30]} 23. axb4 {[%emt 0:06:14]} Qxb4 {[%emt 0:00:00]} 24. f5 {[%emt 0:00:53]} Rfb8 {[%emt 0:04:00]} 25. Nf3 {[%emt 0:00:03]} Rb7 {[%emt 0:04:30]} 26. Qe2 {[%emt 0:01:35]} a3 {[%emt 0:03:19]} 27. Rxa3 {[%emt 0:05:15]} Rxa3 {[%emt 0:00:30]} 28. bxa3 {[%emt 0:00:36]} Qxa3 {[%emt 0:00:30]} 29. g4 {[%emt 0:00:47]} Rb1 {[%emt 0:00:30]} 30. g5 {[%emt 0:00:37]} Nd3 {[%emt 0:00:59]} 31. Nd2 {[%emt 0:03:16]} Nxf2 {[%emt 0:08:22]} 32. Nxb1 {[%emt 0:00:09]} Nh3+ {[%emt 0:00:07]} 33. Bxh3 {[%emt 0:01:24]} Qxh3 {[%emt 0:00:32]} 34. gxf6 {[%emt 0:00:04]} g6 {[%emt 0:04:47]} 35. fxg6 {[%emt 0:01:42]} hxg6 {[%emt 0:00:35]} 36. Nd2 {[%emt 0:00:38]} Bg4 {[%emt 0:00:44]} 37. Qf2 {[%emt 0:00:24]} Kf7 {[%emt 0:00:44]} 38. Nf1 {[%emt 0:01:13]} Qc3 {[%emt 0:00:47]} 39. Nd2 {[%emt 0:02:50]} Bh3 {[%emt 0:01:35]} 40. Qe2 {[%emt 0:01:43]} Qc1+ {[%emt 0:01:10]} 41. Kf2 {[%emt 0:00:07]} Bg4 {[%emt 0:01:52]} 42. Qe3 {[%emt 0:01:56]} Qh1 {[%emt 0:00:12]} 43. Kg3 {[%emt 0:00:09]} Bh5 {[%emt 0:00:03]} 44. Nf3 {[%emt 0:00:25]} Bxf3 {[%emt 0:00:51]} 45. Qxf3 {[%emt 0:00:30]} Qg1+ {[%emt 0:00:33]} 46. Kh3 {[%emt 0:00:38]} Qg5 {[%emt 0:00:01]} 47. Qg4 {[%emt 0:01:19]} Qe3+ {[%emt 0:00:26]} 48. Kg2 {[%emt 0:00:16]} Qd2+ {[%emt 0:00:03]} 49. Kg3 {[%emt 0:00:13]} Qe3+ {[%emt 0:01:17]} 50. Qf3 {[%emt 0:00:22]} Qg5+ {[%emt 0:00:28]} 51. Kh3 {[%emt 0:00:01]} Qh6+ {[%emt 0:00:39]} 52. Kg3 {[%emt 0:00:23]} Qg5+ {[%emt 0:00:21]} 53. Qg4 {[%emt 0:00:11]} Qe3+ {[%emt 0:00:11]} 54. Kg2 {[%emt 0:00:15]} Qd2+ {[%emt 0:00:08]} 55. Kg1 {[%emt 0:00:46]} 1/2-1/2

[Event "Konyaalti Open-B 2019"]
[Site "Konyaalti"]
[Date "2019.11.21"]
[Round "8.12"]
[White "Ozen, Metehan"]
[Black "Egeli, Sercan Veli"]
[Result "0-1"]
[ECO "A07"]
[WhiteElo "1779"]
[BlackElo "1478"]
[Annotator "NA"]
[PlyCount "84"]
[EventDate "2019.11.20"]
[EventType "swiss"]
[EventCountry "TUR"]
[SourceTitle "playchess.com"]
[Source "ChessBase"]
[SourceQuality "1"]
[TimeControl "5400+30"]

1. Nf3 {[%emt 0:03:30]} Nf6 {[%emt 0:02:30]} 2. g3 {[%emt 0:00:30]} g6 {[%emt 0:02:30]} 3. b3 {[%emt 0:01:30]} Bg7 {[%emt 0:00:00]} 4. Bb2 {[%emt 0:00:00]} O-O {[%emt 0:00:00]} 5. Bg2 {[%emt 0:00:00]} d5 {[%emt 0:01:30]} 6. O-O {[%emt 0:00:30]} c6 {[%emt 0:08:30]} 7. d3 {[%emt 0:00:30]} Nbd7 {[%emt 0:00:30]} 8. Nbd2 {[%emt 0:00:30]} Re8 {[%emt 0:00:30]} 9. e4 {[%emt 0:00:30]} dxe4 {[%emt 0:04:30]} 10. dxe4 {[%emt 0:00:30]} Nxe4 {[%emt 0:00:30]} 11. Bxg7 {[%emt 0:01:30]} Nxd2 {[%emt 0:00:30]} 12. Qxd2 {[%emt 0:00:30]} Kxg7 {[%emt 0:00:30]} 13. Rad1 {[%emt 0:00:30]} Qc7 {[%emt 0:01:30]} 14. Rfe1 {[%emt 0:02:30]} Nf6 {[%emt 0:00:30]} 15. Qc3 {[%emt 0:03:30]} h6 {[%emt 0:05:30]} 16. Nd4 {[%emt 0:06:30]} Bg4 {[%emt 0:02:30]} 17. f3 {[%emt 0:01:30]} Bd7 {[%emt 0:00:30]} 18. Kh1 {[%emt 0:01:30]} Rad8 {[%emt 0:00:30]} 19. f4 {[%emt 0:08:30]} Bg4 {[%emt 0:02:30]} 20. Rd3 {[%emt 0:02:30]} Qb6 {[%emt 0:03:30]} 21. h3 {[%emt 0:01:30]} c5 {[%emt 0:01:30]} 22. Nf3 {[%emt 0:02:30]} Rxd3 {[%emt 0:09:30]} 23. Qxd3 {[%emt 0:02:30]} Bxf3 {[%emt 0:01:30]} 24. Qxf3 {[%emt 0:00:30]} Qa5 {[%emt 0:05:30]} 25. Qe3 {[%emt 0:05:30]} Qc7 {[%emt 0:04:30]} 26. g4 {[%emt 0:00:30]} b6 {[%emt 0:04:30]} 27. Rf1 {[%emt 0:01:30]} Qd6 {[%emt 0:04:30]} 28. Qf3 {[%emt 0:03:30]} Rd8 {[%emt 0:08:30]} 29. g5 {[%emt 0:12:30]} Nh5 {[%emt 0:01:30]} 30. Kg1 {[%emt 0:01:30]} Qd4+ {[%emt 0:00:30]} 31. Kh1 {[%emt 0:00:30]} Qd6 {[%emt 0:01:30]} 32. Kg1 {[%emt 0:00:30]} Qd4+ {[%emt 0:03:30]} 33. Kh1 {[%emt 0:00:00]} Qd2 {[%emt 0:00:30]} 34. gxh6+ {[%emt 0:06:00]} Kxh6 {[%emt 0:00:30]} 35. f5 {[%emt 0:03:30]} Qg5 {[%emt 0:00:30]} 36. Kh2 {[%emt 0:00:30]} gxf5 {[%emt 0:00:39]} 37. Qxf5 {[%emt 0:01:30]} Qxf5 {[%emt 0:06:26]} 38. Rxf5 {[%emt 0:00:00]} Rd2 {[%emt 0:00:17]} 39. Kg1 {[%emt 0:01:00]} Kg6 {[%emt 0:02:37]} 40. Rf2 {[%emt 0:00:30]} Rxf2 {[%emt 0:00:33]} 41. Kxf2 {[%emt 0:00:30]} Kg5 {[%emt 0:00:34]} 42. Kf3 {[%emt 0:00:30]} f5 {[%emt 0:01:08]} 0-1

[Event "Konyaalti Open-B 2019"]
[Site "Konyaalti"]
[Date "2019.11.21"]
[Round "8.13"]
[White "Kartal, Efe Onur"]
[Black "Demir, Hilmi Mustafa"]
[Result "1/2-1/2"]
[ECO "C55"]
[WhiteElo "1745"]
[BlackElo "1818"]
[Annotator "NA"]
[PlyCount "40"]
[EventDate "2019.11.20"]
[EventType "swiss"]
[EventCountry "TUR"]
[SourceTitle "playchess.com"]
[Source "ChessBase"]
[SourceQuality "1"]
[TimeControl "5400+30"]

1. e4 {[%emt 0:01:30]} e5 {[%emt 0:00:30]} 2. Nf3 {[%emt 0:00:00]} Nc6 {[%emt 0:00:00]} 3. Bc4 {[%emt 0:00:00]} Nf6 {[%emt 0:00:00]} 4. d3 {[%emt 0:01:30]} Be7 {[%emt 0:00:30]} 5. c3 {[%emt 0:00:00]} O-O {[%emt 0:00:30]} 6. Nbd2 {[%emt 0:01:00]} d6 {[%emt 0:04:30]} 7. Qe2 {[%emt 0:03:30]} Be6 {[%emt 0:03:30]} 8. Bb3 {[%emt 0:01:30]} Na5 {[%emt 0:02:30]} 9. Bc2 {[%emt 0:01:30]} c5 {[%emt 0:00:00]} 10. O-O {[%emt 0:03:30]} Nh5 {[%emt 0:01:00]} 11. Nc4 {[%emt 0:09:30]} Nxc4 {[%emt 0:02:30]} 12. dxc4 {[%emt 0:00:30]} g6 {[%emt 0:04:30]} 13. Bh6 {[%emt 0:09:30]} Ng7 {[%emt 0:03:30]} 14. Rad1 {[%emt 0:01:30]} Qa5 {[%emt 0:08:30]} 15. Bb1 {[%emt 0:01:30]} a6 {[%emt 0:00:30]} 16. Ng5 {[%emt 0:05:30]} Qd8 {[%emt 0:03:30]} 17. Nxe6 {[%emt 0:01:30]} fxe6 {[%emt 0:01:30]} 18. Qg4 {[%emt 0:05:30]} Qc8 {[%emt 0:02:30]} 19. h4 {[%emt 0:03:30]} Rf7 {[%emt 0:03:30]} 20. g3 {[%emt 0:06:30]} b5 {[%emt 0:03:30]} 1/2-1/2

[Event "Konyaalti Open-B 2019"]
[Site "Konyaalti"]
[Date "2019.11.21"]
[Round "8.14"]
[White "Var, Sefa"]
[Black "Atik, Muhammed Ihsan"]
[Result "1/2-1/2"]
[ECO "A34"]
[WhiteElo "1745"]
[BlackElo "1533"]
[Annotator "NA"]
[PlyCount "82"]
[EventDate "2019.11.20"]
[EventType "swiss"]
[EventCountry "TUR"]
[SourceTitle "playchess.com"]
[Source "ChessBase"]
[SourceQuality "1"]
[TimeControl "5400+30"]

1. e4 {[%emt 0:00:30]} c5 {[%emt 0:00:30]} 2. Nf3 {[%emt 0:00:30]} e6 {[%emt 0:00:00]} 3. c4 {[%emt 0:01:30]} Nc6 {[%emt 0:01:00]} 4. Nc3 {[%emt 0:00:30]} Nf6 {[%emt 0:00:30]} 5. Be2 {[%emt 0:00:30]} d5 {[%emt 0:05:30]} 6. exd5 {[%emt 0:00:30]} exd5 {[%emt 0:00:30]} 7. d4 {[%emt 0:00:30]} cxd4 {[%emt 0:01:30]} 8. Nxd4 {[%emt 0:01:30]} dxc4 {[%emt 0:01:30]} 9. Nxc6 {[%emt 0:03:30]} Qxd1+ {[%emt 0:00:30]} 10. Kxd1 {[%emt 0:06:30]} bxc6 {[%emt 0:00:30]} 11. Bxc4 {[%emt 0:00:30]} Bg4+ {[%emt 0:06:30]} 12. f3 {[%emt 0:03:30]} O-O-O+ {[%emt 0:00:30]} 13. Ke2 {[%emt 0:00:30]} Re8+ {[%emt 0:03:30]} 14. Kd1 {[%emt 0:05:30]} Be6 {[%emt 0:01:30]} 15. Ba6+ {[%emt 0:03:30]} Kc7 {[%emt 0:01:30]} 16. Bf4+ {[%emt 0:05:30]} Bd6 {[%emt 0:00:30]} 17. Bxd6+ {[%emt 0:00:30]} Kxd6 {[%emt 0:00:30]} 18. Kc2 {[%emt 0:01:30]} Bf5+ {[%emt 0:02:30]} 19. Bd3 {[%emt 0:01:30]} Bxd3+ {[%emt 0:01:30]} 20. Kxd3 {[%emt 0:00:30]} Nd5 {[%emt 0:01:30]} 21. Nxd5 {[%emt 0:02:30]} cxd5 {[%emt 0:00:30]} 22. Rhe1 {[%emt 0:04:30]} Rxe1 {[%emt 0:01:30]} 23. Rxe1 {[%emt 0:00:00]} Rb8 {[%emt 0:00:30]} 24. b3 {[%emt 0:02:00]} Rc8 {[%emt 0:00:30]} 25. f4 {[%emt 0:01:30]} Rf8 {[%emt 0:02:30]} 26. Kd4 {[%emt 0:01:30]} Rb8 {[%emt 0:00:30]} 27. g3 {[%emt 0:01:30]} Rb4+ {[%emt 0:01:30]} 28. Kd3 {[%emt 0:00:30]} Rb8 {[%emt 0:00:00]} 29. Re5 {[%emt 0:01:30]} a5 {[%emt 0:02:00]} 30. Kc3 {[%emt 0:01:30]} g6 {[%emt 0:02:30]} 31. Re1 {[%emt 0:04:30]} h5 {[%emt 0:04:30]} 32. Re5 {[%emt 0:02:30]} f6 {[%emt 0:01:30]} 33. Re1 {[%emt 0:00:30]} Rc8+ {[%emt 0:01:30]} 34. Kd2 {[%emt 0:01:30]} Rb8 {[%emt 0:06:30]} 35. Re3 {[%emt 0:00:30]} Rc8 {[%emt 0:05:30]} 36. Rd3 {[%emt 0:00:30]} Rb8 {[%emt 0:02:30]} 37. Rd4 {[%emt 0:08:30]} Rb4 {[%emt 0:06:30]} 38. Kc3 {[%emt 0:04:30]} Kc5 {[%emt 0:04:30]} 39. Rd2 {[%emt 0:00:00]} Re4 {[%emt 0:01:30]} 40. Rc2 {[%emt 0:00:00]} Kd6 {[%emt 0:04:30]} 41. Kd3 {[%emt 0:01:30]} Re8 {[%emt 0:00:30]} 1/2-1/2